Cogmind - Beta 15 @@@ ROGUE MODE // 2025.06.21 @ 23:08:25 Player: roc Result: Destroyed by 0G-HDI(R) with Subdweller Machine Gun Performance ------------- Evolutions (0) 0 Regions Visited (2) 400 Robots Destroyed (24) 120 Value Destroyed (404) 404 Prototype IDs (0) 0 Alien Tech Used (0) 0 Bonus (0) 0 TOTAL SCORE: 924 Bonus ------- None Cogmind --------- Core Integrity 0/250 Matter 235/300 Energy 200/200 System Corruption 0% Temperature Cool (0) Movement Core (1500) Ox29 Location -10/Subcaves Parts ------- > --- POWER (1) -------- Subdweller Power Source > --- PROPULSION (2) --- (None) > --- UTILITY (2) ------ Heat Sink Huge Storage Unit > --- WEAPON (2) ------- Assault Rifle > --- INVENTORY (25) --- Ion Engine Spiked Treads Wheel Wheel Subdweller Monowheel High-capacity Storage Unit Medium Matter Pod (100) Structural Scanner Subdweller Optics Sensor Array Signal Interpreter Signal Interpreter Improved Terrain Scanner Seismic Detector Light Armor Plating Medium Laser Medium Laser Medium Laser Assault Rifle Light Assault Rifle Battle Rifle Peak State ------------ > --- POWER ------------ Ion Engine > --- PROPULSION ------- Light Treads Wheel > --- UTILITY ---------- Heat Sink Huge Storage Unit > --- WEAPON ----------- Beam Cannon Battle Rifle > --- INVENTORY -------- Ion Engine Subdweller Power Source Light Treads Light Treads Spiked Treads Wheel Subdweller Monowheel High-capacity Storage Unit Medium Matter Pod Structural Scanner Subdweller Optics Sensor Array Signal Interpreter Signal Interpreter Improved Terrain Scanner Seismic Detector Light Armor Plating Medium Laser Medium Laser Medium Laser Subdweller Laser Assault Rifle Assault Rifle Light Assault Rifle [Rating: 11] Favorites ----------- Power Ion Engine Engine Ion Engine Propulsion Light Treads Treads Light Treads Wheel Wheel Utility Huge Storage Unit Device Heat Sink Storage Huge Storage Unit Weapon Assault Rifle Energy Gun Medium Laser Energy Cannon Beam Cannon Ballistic Gun Assault Rifle Build | -11 -10 -10 ------- Run | Yrd Mat Sub Slots Evolved . | . . . Power . | . . . Propulsion . | . . . Utility . | . . . Weapon . | . . . Parts Attached 18 | 6 6 6 Power 2 | 1 . 1 Engine 2 | 1 . 1 Core . | . . . Reactor . | . . . Propulsion 6 | 2 1 3 Treads 4 | 2 . 2 Leg . | . . . Wheel 2 | . 1 1 Hover . | . . . Flight . | . . . Utility 4 | 1 3 . Device 1 | . 1 . Storage 3 | 1 2 . Processor . | . . . Hackware . | . . . Protection . | . . . Artifact . | . . . Weapon 6 | 2 2 2 Energy Gun 2 | 1 . 1 Energy Cannon 1 | . 1 . Ballistic Gun 3 | 1 1 1 Ballistic Cannon . | . . . Launcher . | . . . Special Weapon . | . . . Impact Weapon . | . . . Slashing Weapon . | . . . Piercing Weapon . | . . . Special Melee Weapon . | . . . Unidentified Prototypes . | . . . Parts Lost 7 | . . 7 Power 1 | . . 1 Propulsion 4 | . . 4 Utility . | . . . Weapon 2 | . . 2 Highest Loss Streak 6 | . . 6 To Critical Strikes . | . . . Average Backups 16 | 2 16 21 Power 1 | . 1 1 Propulsion 3 | 1 3 4 Utility 7 | . 7 9 Weapon 4 | . 3 5 Tool/Special . | . . . Unused Backups 16 | . . 16 Power 1 | . . 1 Propulsion 2 | . . 2 Utility 10 | . . 10 Weapon 3 | . . 3 Tool/Special . | . . . Average Slot Usage (%) 99 | . 99 99 Engine 14 | . 14 14 Treads 14 | . 14 14 Wheel 12 | . 13 12 Device 6 | . 3 14 Storage 20 | . 24 14 Energy Gun 4 | . 6 . Energy Cannon 9 | . 7 13 Ballistic Gun 13 | . 14 13 Peak Build Rating 11 | 6 9 11 Average Rating 8 | 5 8 9 On Entrance 5 | . 6 9 Naked Turns . | . . . Heaviest Build 100 | 14 100 93 Greatest Support 40 | 40 40 40 Greatest Overweight (x) 9 | . 9 9 Average Overweight (x) 8 | . 8 8 Largest Inventory Capacity 25 | 8 25 25 Average Capacity 23 | 7 24 25 Most Carried 24 | 6 20 24 Average Carried 17 | 2 16 21 Final Capacity 25 | 8 25 25 Final Carried 21 | 6 19 21 Class Distribution -------------------- 100% | Mutant Dominant Class ---------------- Mutant | -10/Materials Mutant | -10/Subcaves Resources | -11 -10 -10 ----------- Run | Yrd Mat Sub Matter Collected 613 | 293 273 47 Remotely . | . . . Salvage Created 653 | 129 396 128 Parts 51 | 10 34 7 Haulers Intercepted 1 | . 1 . Recyclers Shooed . | . . . Parts Field Recycled . | . . . Retrieved Matter . | . . . Parts Self-Destructed . | . . . Prevented . | . . . Kills | -11 -10 -10 ------- Run | Yrd Mat Sub Combat Hostiles Destroyed 16 | . 13 3 Guns 10 | . 9 1 Cannons 6 | . 4 2 Classes Destroyed 7 | 3 3 1 Worker 3 | 2 1 . Tunneler 3 | 2 1 . Hauler 1 | . 1 . Recycler 1 | 1 . . Swarmer 9 | . 9 . Grunt 4 | . 4 . Subdweller 3 | . . 3 Best Kill Streak 4 | 4 3 2 Combat Bots Only 3 | . 3 2 Max Kills in Single Turn 2 | 2 2 1 Gunslinging . | . . . Exploded . | . . . Melee . | . . . Uniques/NPCs Destroyed . | . . . Combat | -11 -10 -10 -------- Run | Yrd Mat Sub Hostile Shots Fired 94 | . 47 47 Missed 17 | . 8 9 Hits 77 | . 39 38 Projectile 77 | . 39 38 AOE 2 | . . 2 Critical Strikes 4 | . 3 1 Damage Taken 1287 | . 402 885 Core 272 | . 93 179 Absorbed by Shields . | . . . Core Remaining (%) 100 | 100 . . Volleys Fired 66 | 11 32 23 Largest 2 | 2 2 2 Hottest 120 | 70 80 120 Shots Fired 129 | 22 63 44 Gun 105 | 22 53 30 Cannon 24 | . 10 14 Launcher . | . . . Special . | . . . Kinetic 61 | 11 31 19 Thermal 68 | 11 32 25 Explosive . | . . . Electromagnetic . | . . . Robot Hit Streak 18 | 11 13 18 Robot Miss Streak 3 | 3 3 1 Penetration Max . | . . . Secondary Targets 1 | . 1 . Max Gunslinging Chain 1 | . 1 . Shots Hit Robots 94 | 16 39 39 Core Hits 34 | 5 22 7 Critical Kills . | . . . Critical Parts Destroyed . | . . . Critical Strikes 2 | . 2 . Burn 2 | . 2 . Melee Attacks . | . . . Impact . | . . . Slashing . | . . . Piercing . | . . . Sneak Attacks . | . . . Combat Hostiles . | . . . Follow-up Attacks . | . . . Damage Inflicted 1437 | 229 565 643 Guns 1090 | 229 461 400 Cannons 347 | . 104 243 Explosions . | . . . Melee . | . . . Ramming . | . . . Kinetic 620 | 118 285 217 Thermal 817 | 111 280 426 Explosive . | . . . Electromagnetic . | . . . Impact . | . . . Slashing . | . . . Piercing . | . . . Highest Corruption . | . . . Average Corruption . | . . . Corruption Purged . | . . . Corruption Blocked . | . . . Overload Shots . | . . . Overflow Damage . | . . . Projectiles . | . . . Explosions . | . . . Melee . | . . . Knockbacks . | . . . Impact . | . . . Kinetic . | . . . Secondary . | . . . Self-Inflicted Damage . | . . . Shots . | . . . Rammed . | . . . Targets Rammed . | . . . Kicked . | . . . Crushed . | . . . Highest Temperature 129 | 63 129 . Average Temperature 40 | 27 44 . Received Heat Transfer 183 | . 159 24 Siege Activations . | . . . Martial Activations . | . . . Shielding Activations . | . . . Robots Disrupted . | . . . Combat Hostiles . | . . . Robots Corrupted . | . . . Combat Hostiles . | . . . Parts Fried . | . . . Impact Corruptions . | . . . Robots Melted . | . . . Combat Hostiles . | . . . Parts Melted 2 | . 1 1 Heat Transferred 1964 | 333 888 743 Parts Sabotaged . | . . . Parts Stolen . | . . . Parts Stripped . | . . . Power Chain Reactions . | . . . Alert | -11 -10 -10 ------- Run | Yrd Mat Sub Maximum Alert Level . | . . . Low Security (%) 100 | 100 100 . Level 1 . | . . . Level 2 . | . . . Level 3 . | . . . Level 4 . | . . . Level 5 . | . . . High Security . | . . . Max Security . | . . . Peak Influence 100 | 20 100 . Initial . | . . . Average 23 | 2 25 . Influence Increases 372 | 25 347 . Destroy 0b10 Robot/C 260 | . 260 . Destroy 0b10 Robot/NC 40 | 25 15 . Destroy Leader 52 | . 52 . Successful Hack 19 | . 19 . Destroy Structure 1 | . 1 . Influence Decreases 372 | 25 317 30 Entered New Map 15 | . . 15 Time Decay 357 | 25 317 15 Squads Dispatched . | . . . Investigation . | . . . Extermination . | . . . Reinforcement . | . . . Assault . | . . . Garrison . | . . . Intercept . | . . . Searches Triggered . | . . . Construction Impeded . | . . . Haulers Reinforced . | . . . Active Scanning Responses . | . . . Cargo Convoy Interrupts . | . . . Stealth | -11 -10 -10 --------- Run | Yrd Mat Sub Distress Signals 2 | . 2 . Communications Jammed . | . . . Distress Signals . | . . . Times Spotted 31 | . 23 8 Peak Tracking Total 4 | . 4 3 Tactical Retreats . | . . . Traps | -11 -10 -10 ------- Run | Yrd Mat Sub Traps Triggered . | . . . Indirectly . | . . . Trap Hack Attempts . | . . . Triggered . | . . . Disarmed . | . . . Reprogrammed . | . . . Reused . | . . . Traps Extracted . | . . . Installed . | . . . Triggered . | . . . Machines | -11 -10 -10 ---------- Run | Yrd Mat Sub Machines Disabled . | . . . Max in Single Turn . | . . . Machines Repaired . | . . . Machines Dismantled . | . . . Machines Sabotaged . | . . . Overloaded Fab Kills . | . . . Hacking | -11 -10 -10 --------- Run | Yrd Mat Sub Machines Accessed 8 | . 8 . Terminals 7 | . 7 . Fabricators . | . . . Repair Stations 1 | . 1 . Recycling Units . | . . . Scanalyzers . | . . . Garrison Access . | . . . Total Hacks 20 | . 20 . Successful 12 | . 12 . Failed 8 | . 8 . Catastrophic 1 | . 1 . Database Lockouts . | . . . Manual 14 | . 14 . Terminals 19 | . 19 . Fabricators . | . . . Repair Stations 1 | . 1 . Recycling Units . | . . . Scanalyzers . | . . . Garrison Access . | . . . Terminal Hacks 4 | . 4 . Locate Traps 2 | . 2 . Hauler Manifests 1 | . 1 . Zone Layout 1 | . 1 . Fabricator Hacks . | . . . Repair Station Hacks . | . . . Recycling Unit Hacks . | . . . Scanalyzer . | . . . Garrison Access Hacks . | . . . Unauthorized Hacks 8 | . 8 . Terminals 8 | . 8 . Botnet 2 | . 2 . Operators 1 | . 1 . Skim 5 | . 5 . Fabricators . | . . . Repair Stations . | . . . Recycling Units . | . . . Scanalyzers . | . . . Garrison Access . | . . . Data Cores Recovered . | . . . Used . | . . . Hacking Detections 6 | . 6 . Full Trace Events . | . . . Feedback Events . | . . . Feedback Blocked . | . . . Robot Schematics Acquired . | . . . Robots Built . | . . . Authchips . | . . . Time . | . . . Total Robot Build Rating . | . . . Part Schematics Acquired . | . . . Parts Built . | . . . Authchips . | . . . Time . | . . . Total Part Build Rating . | . . . Parts Repaired . | . . . Time . | . . . Parts Recycled . | . . . Recycled Matter . | . . . Retrieved Matter . | . . . Retrieved Components . | . . . Parts Scanalyzed . | . . . Part Schematics Acquired . | . . . Parts Damaged . | . . . Bothacking | -11 -10 -10 ------------ Run | Yrd Mat Sub Used RIF Installer . | . . . Robots Hacked . | . . . Non-combat . | . . . Combat . | . . . Robot Hacks Applied . | . . . Relay Couplers Released . | . . . Fabnet Peak Effective % . | . . . Robots Rewired . | . . . Allies Hacked . | . . . Hacks Repelled . | . . . Allies | -11 -10 -10 -------- Run | Yrd Mat Sub Total Allies . | . . . Largest Group . | . . . Highest-Rated Group . | . . . Highest-Rated Ally . | . . . Total Orders . | . . . Ally Attacks . | . . . Total Damage . | . . . Kills . | . . . Allies Corrupted . | . . . Allies Melted . | . . . Intel | -11 -10 -10 ------- Run | Yrd Mat Sub Active Infowar (turns) . | . . . Robot Analysis Total . | . . . Derelict Logs Recovered . | . . . Drone Launches . | . . . Drone Recoveries . | . . . Exploration | -11 -10 -10 ------------- Run | Yrd Mat Sub Turns Passed 2835 | 174 1747 914 Spaces Moved 1205 | 87 735 383 Core 11 | 11 . . Treads 114 | 76 37 1 Legs . | . . . Wheels 1080 | . 698 382 Hover . | . . . Flight . | . . . Fastest Speed 50 | 50 160 215 Average Speed 208 | 146 212 215 Slowest Speed 320 | 160 320 320 Overloaded Moves . | . . . Propulsion Burnouts . | . . . Robots Hopped . | . . . Potential Cave-ins . | . . . Cave-ins Triggered . | . . . Exploration Rate (%) 44 | 6 95 31 Regions Visited 2 Branch Regions 1 Pre-discovered Areas 2 | . 1 1 Known Exits Taken . | . . . Unknown Exits Taken 2 | 1 1 . Scrap Searched . | . . . Spaces Dug . | . . . Terrain Destroyed . | . . . Melee . | . . . Projectile . | . . . AOE . | . . . Terrain Rammed . | . . . Walls Destroyed . | . . . Machines Disabled . | . . . Actions | -11 -10 -10 --------- Run | Yrd Mat Sub Total 1392 | 109 855 428 Wait 75 | . 67 8 Move 1203 | 86 734 383 Hop . | . . . Pick Up 23 | 6 12 5 Fast Attach 8 | 6 2 . Attach 4 | . . 4 Detach . | . . . Swap 11 | . 6 5 Drop 2 | . 2 . Fire 66 | 11 32 23 Melee . | . . . Ram . | . . . Kick . | . . . Crush . | . . . Escape Stasis . | . . . Rewire . | . . . Trap . | . . . Miscellaneous . | . . . Route ------- -11/Scrapyard -10/Materials (discovered 6 exits: [*Mat x3] / [*Min x2] / [*Sub]) -10/Subcaves (discovered 3 exits: Mat x2 / Rec) History --------- Turn | Location | Event 3 | -11/Scrapyard | Discovered new exit (range 15) 175 | -11/Scrapyard | Entered Materials 315 | -10/Materials | Build established: Mutant 464 | -10/Materials | Discovered new exit (range 5) 620 | -10/Materials | Discovered new exit (range 16) 809 | -10/Materials | Discovered new exit (range 7) 877 | -10/Materials | Discovered new exit (range 13) 1283 | -10/Materials | Discovered new exit (range 3) 1603 | -10/Materials | Learned 2 Mines zone layouts 1660 | -10/Materials | Learned location of Mines (-9) 1708 | -10/Materials | Learned location of 1 exit from Storage 1746 | -10/Materials | Learned 4 Subcaves zone layouts 1772 | -10/Materials | Learned location of 1 exit from Recycling 1911 | -10/Materials | Discovered new exit (range 6) 1922 | -10/Materials | Entered Subcaves 1923 | -10/Subcaves | Identified exit to Materials 1924 | -10/Subcaves | Identified exit to Recycling 2505 | -10/Subcaves | Core integrity fell below 50% 2665 | -10/Subcaves | Learned location of Zion (-6) 2665 | -10/Subcaves | Met a Zionite searching for "candidates" 2767 | -10/Subcaves | Shifting Twisted Machinery released Sub. Power Source 2771 | -10/Subcaves | Shifting Twisted Machinery released Sub. Laser 2794 | -10/Subcaves | Ambushed by Subdweller buried in earth 2816 | -10/Subcaves | Ambushed by Subdweller buried in earth 2816 | -10/Subcaves | Ambushed by Subdweller buried in earth 2817 | -10/Subcaves | Core integrity fell below 20% 2836 | -10/Subcaves | Destroyed by 0G-HDI(R) with Subdweller Machine Gun Last Messages --------------- 02665_ LU-VH4(z): "Hey you! It's really dangerous down here, I feel that you could die at any moment. For your health and safety might I suggest a trip to Zion?" World map updated: -6/Zion. Sub. Power Source falls loose from the Twisted Machinery. Sub. Laser falls loose from the Twisted Machinery. 02781_ Acquired Sub. Laser. 02794_ Ion Engine destroyed. 02795_ 76-I8H(R): "GOODGOOD!" 02799_ Lgt. Treads destroyed. 02811_ Beam Cannon destroyed. 02812_ Sub. Monowheel melted. 02812_ 76-I8H(R) destroyed. 02817_ 0G-HDI(R): "NAT20!" 02817_ TX-MIZ(R): "ARGHSUB!" 02822_ TX-MIZ(R) affixes Scrap Shield Fragment to Scrap Shield. 02827_ Lgt. Treads destroyed. 02833_ Sub. Laser destroyed. 02835_ Lgt. Treads destroyed. 02836_ Subatomizers dissect the Disposable Heat Sink. Map ----- +----------------------------------------------------+ | ###" " ##??????????????????????????????? | | # " " ## " ##?????????????????????????????? | | # " #"" ?????????????????????????????? | | # # " ?????????????????????????????? | | ## " # ##?????????????????????????????? | | #####?????????????????????????????? | | "#???#?????????????????????????????? | | ?????????????????????????????????????????????? | | ?????????????????????????????????????????????? | | ?????????????????????????????????????????????? | | ?????????????????????????????????????????????? | | ?????????????????????????????????????????????? | | ??????????????????????????????#??????????????? | | ????????????????????????????? #??????????????? | | ????????????????????????????? #??????????????? | | ????????????????????????????? #??????????????? | | ???????????????????????????? #??????????????? | | ??????????????????????###??? ??????????????? | | ?????????????????????## ### ???????????????? | | ?????????????????????# #???????????????? | | ?????????????????????? ##??????????????? | | ????????????????????### #??????????????? | | ????????????????????# ;; #??????????????? | | ???????????#######??# ! #??????????????? | | ##????????## ##?# %R ;#??????????????? | | ###?###### #??# @ #??????????????? | | ## # """" ### ; R #??????????????? | | " "" ##; #??????????????? | | " " ##??????????????? | | ## ""### #???????????????? | | ######## ## ### """ # ##???????????????? | | #????# ### "### " ###????????????????? | | ?????# ##?## "### ##????????????????? | | ####### #??## ### #????????????????? | | ## ##?# # *""""" ##????????????????? | | #### # "" ""###?????????????????? | | # #### ## ## """"##???????????????????? | | #######??# # # #### " ##????????????????????? | | ????????## ### #??## ##?????????????????????? | | ???????## ##?## ????##??????????????????????? | | #####?## # ????#????????????????????????????? | | " "#?#$ #?? ????????????????????????????????? | | #?# ??## ??????????????????????????????? | | #### ?#### #?????????????????????????????? | | #?????????????????????????????? | | ?????????????????????????????? | | ""?????????????????????????????? | | ########## ?????????????????????????????? | | #????????###?????????????????????????????? | | " "#?????????##?????????????????????????????? | +----------------------------------------------------+ Best States ------------- Heat Dissipation 35 Energy Generation 15 Energy Capacity 250 Matter Stores 300 Matter Capacity 300 Sight Range 16 Terrain Scan Density 10 Evasion (%) 40 Recoil Reduction 2 Item Schematics ----------------- None Robot Schematics ------------------ None Fabricated ------------ Nothing Repaired ---------- Nothing Alien Tech Used ----------------- None Achievements -------------- None Challenges ------------ None Game ------ Seed CatalystDispersalRay Manual? 0 Play Time 00:11:04 Cumulative 487.4 hours Start 2025.06.21 @ 22:55:01 End 2025.06.21 @ 23:08:25 Sessions 3 Manual Loads 0 Difficulty Rogue Special Mode None Game No. 395 Rogue 387 Adventurer 0 Explorer 8 Win Type - Total 8 Types 6/0/2/0/0/0/0/0/0/0 Lore% 83 Gallery% 76 Achievement% 71 Wizard Run 0 Options --------- Layout 0 ASCII 0 Keyboard 1 Movement Vi Keybinds 0 Fullscreen 1 Font 18/SmallcapsGlow Map View 76x50 Zoom Use 0% Tactical HUD 1 Map Filters NONE Filters NONE Steam 1 RUN: 628c38a8-350d-4e6a-9844-3196d5696127